bitfinex/quotes_BTCUSD_20260215
["timestamp","ask_amount","ask_price","bid_price","bid_amount"]
[1771120744694,4e-05,69734.0,69731.0,0.02483895]
[1771120744898,4e-05,69734.0,69729.0,0.07170575]
[1771120745094,4e-05,69734.0,69726.0,0.42423949]
[1771120745095,0.07183044,69742.0,69733.0,0.05689456]
[1771120745300,0.0001373,69742.0,69734.0,0.02483895]
[1771120745521,0.0001373,69742.0,69738.0,0.07169608]
[1771120745817,0.3423309,69749.0,69738.0,0.07169608]
[1771120745996,0.0001303,69742.0,69738.0,0.07169608]
[1771120746164,0.0001303,69742.0,69738.0,0.07165201]
[1771120746569,0.0001303,69742.0,69738.0,0.07160793]
[1771120747179,0.0001303,69742.0,69737.0,0.07169767]
[1771120747386,0.0001303,69742.0,69733.0,0.13740468]
[1771120747568,0.07168837,69747.0,69739.0,0.09653467]
[1771120748165,4e-05,69742.0,69740.0,0.07177477]
[1771120748391,4e-05,69742.0,69741.0,0.02483895]
[1771120748735,4e-05,69742.0,69740.0,0.00012]
[1771120749260,0.00044,69742.0,69740.0,0.00012]
[1771120749941,0.00044,69742.0,69740.0,0.097653]
[1771120750144,4e-05,69746.0,69740.0,0.02595895]
[1771120750356,4e-05,69746.0,69742.0,0.16224363]
[1771120750632,4e-05,69746.0,69743.0,0.02483895]
[1771120750826,4e-05,69746.0,69742.0,0.20909682]
[1771120751012,0.0004,69749.0,69743.0,0.02483895]
[1771120751209,0.0004,69749.0,69744.0,0.02483895]
[1771120752000,4e-05,69750.0,69745.0,0.13740468]
[1771120752201,4e-05,69750.0,69746.0,0.02483895]
[1771120752786,4e-05,69750.0,69747.0,0.02483895]
[1771120753383,0.07168583,69749.0,69747.0,0.02483895]
[1771120753605,0.07272495,69750.0,69747.0,0.02483895]
[1771120753829,0.07272486,69750.0,69747.0,0.02483895]
[1771120754029,0.07172486,69750.0,69747.0,0.02483895]
[1771120754225,4e-05,69750.0,69747.0,0.02483895]
[1771120754849,4e-05,69750.0,69749.0,0.09653008]
[1771120755349,4e-05,69754.0,69750.0,0.02484447]
[1771120756386,0.00104,69754.0,69749.0,0.0716856]
[1771120756565,4e-05,69754.0,69752.0,0.02484447]
[1771120756764,0.0001373,69757.0,69741.0,0.3436]
[1771120757022,0.01189981,69763.0,69751.0,0.07168356]
[1771120757219,0.07167642,69758.0,69750.0,0.001]
[1771120757575,0.07167642,69758.0,69750.0,0.07268449]
[1771120757976,0.28669123,69762.0,69750.0,0.001]
[1771120758172,0.01334443,69761.0,69750.0,0.07168449]
[1771120758508,0.07207746,69757.0,69749.0,0.0726854]
[1771120758890,0.07207746,69757.0,69749.0,0.05190805]
[1771120759684,0.07207746,69757.0,69749.0,0.05290805]
[1771120759891,0.13980397,69756.0,69746.0,4e-05]
[1771120760189,0.13980397,69756.0,69740.0,0.00012]
[1771120760190,0.07169178,69743.0,69740.0,0.00012]
[1771120760487,0.07169285,69742.0,69734.0,4e-05]
[1771120760687,0.15932783,69745.0,69734.0,0.07174063]
[1771120760688,0.07168989,69745.0,69734.0,0.07174063]
[1771120760952,0.07168875,69746.0,69737.0,0.07169722]
[1771120761297,0.07168984,69745.0,69737.0,0.07169722]
[1771120761524,0.07168831,69747.0,69738.0,0.07169678]
[1771120761525,0.071689,69746.0,69738.0,0.07169678]
[1771120761923,0.004,69745.0,69738.0,0.07169678]
[1771120762127,0.071689,69746.0,69738.0,0.07213248]
[1771120762356,0.07168831,69747.0,69738.0,0.07213248]
[1771120762357,0.07168831,69747.0,69739.0,0.07169577]
[1771120762514,0.003,69745.0,69739.0,0.07169577]
[1771120762714,0.07168831,69747.0,69739.0,0.07169577]
[1771120763101,0.07168831,69747.0,69739.0,0.07213147]
[1771120763301,4e-05,69740.0,69739.0,0.07213147]
[1771120763504,4e-05,69740.0,69739.0,0.0004357]
[1771120764107,4e-05,69740.0,69736.0,4e-05]
[1771120764305,0.01956386,69740.0,69734.0,4e-05]
[1771120764531,0.07169668,69739.0,69734.0,0.0001703]
[1771120764729,0.01956386,69740.0,69734.0,0.07187062]
[1771120764945,0.01956386,69740.0,69734.0,0.0001703]
[1771120765560,0.00204,69740.0,69734.0,0.0001703]
[1771120765759,4e-05,69740.0,69734.0,0.0001703]
[1771120765990,4e-05,69740.0,69732.0,4e-05]
[1771120766140,0.07170206,69733.0,69728.0,0.0002045]
[1771120766763,0.0717014,69734.0,69728.0,0.0002045]
[1771120768138,0.002,69733.0,69728.0,0.0002045]
[1771120768472,0.0717014,69734.0,69728.0,0.0002045]
[1771120768887,0.003,69734.0,69728.0,0.0002045]
[1771120769092,0.00029022,69740.0,69729.0,0.02484447]
[1771120769429,0.00029022,69740.0,69729.0,0.07170563]
[1771120769575,0.00029022,69740.0,69728.0,0.0002045]
[1771120769576,0.07169589,69739.0,69731.0,0.07170333]
[1771120769772,0.00029022,69740.0,69730.0,0.07170485]
[1771120769995,0.0716968,69739.0,69731.0,0.07170381]
[1771120770197,0.01952386,69739.0,69728.0,0.0002045]
[1771120770399,0.07170106,69734.0,69728.0,0.0002045]
[1771120770610,0.07169858,69737.0,69729.0,0.07170583]
[1771120770947,0.07169692,69738.0,69730.0,0.07170514]
[1771120771280,0.09122174,69739.0,69731.0,0.07170388]
[1771120771698,0.07169725,69738.0,69730.0,0.07170514]
[1771120771876,0.01952386,69739.0,69730.0,0.07170499]
[1771120772537,0.01952386,69739.0,69732.0,0.0002]
[1771120772739,0.07169743,69738.0,69732.0,0.0002]
[1771120773145,0.13980397,69735.0,69732.0,0.0002]
[1771120773301,0.09122283,69736.0,69732.0,0.0002]
[1771120773914,0.07170012,69735.0,69732.0,0.0002]
[1771120774510,0.01792295,69736.0,69732.0,0.0002]
[1771120775128,0.01792295,69736.0,69732.0,0.0042]
[1771120775356,0.00029022,69740.0,69732.0,0.0042]
[1771120775560,0.00029022,69740.0,69733.0,0.02484447]
[1771120775720,0.00029022,69740.0,69738.0,0.07169605]
[1771120776741,0.00029022,69740.0,69737.0,0.07169769]
[1771120777301,0.00029022,69740.0,69736.0,0.07169824]
[1771120777504,0.00029022,69740.0,69734.0,0.07170051]
[1771120777698,0.00029022,69740.0,69733.0,0.09654454]
[1771120778001,0.00029022,69740.0,69737.0,0.011]
[1771120778224,4e-05,69738.0,69732.0,0.0002]
[1771120778630,4e-05,69738.0,69735.0,0.07169915]
[1771120778841,4e-05,69738.0,69737.0,0.07169795]
[1771120780819,4e-05,69738.0,69737.0,0.08169795]
[1771120781022,4e-05,69738.0,69737.0,0.07169795]
[1771120781440,4e-05,69738.0,69737.0,0.08169795]
[1771120781638,0.00029022,69740.0,69738.0,0.07169596]
[1771120781813,4e-05,69746.0,69739.0,0.07169572]
[1771120782008,0.01335482,69745.0,69739.0,0.07169572]
[1771120782234,0.01335482,69744.0,69739.0,0.07169572]
[1771120782436,0.01335482,69743.0,69739.0,0.07169572]
[1771120782637,0.07172945,69746.0,69738.0,0.07169666]
[1771120782857,0.01335436,69745.0,69738.0,0.07169666]
[1771120783032,0.01335436,69744.0,69738.0,0.07169666]
[1771120783242,0.01335436,69744.0,69737.0,0.08169795]
[1771120783243,0.01335436,69743.0,69739.0,0.07169572]
[1771120783498,0.07172945,69746.0,69739.0,0.07169572]
[1771120783732,0.0133545,69745.0,69744.0,0.0548463]
[1771120783932,0.0004,69747.0,69740.0,0.07169384]
[1771120784111,0.00338947,69746.0,69739.0,0.02336729]
[1771120784455,0.0004,69747.0,69741.0,0.07169359]
[1771120785260,0.0004,69747.0,69741.0,0.05203861]
[1771120785690,0.0004,69747.0,69739.0,0.09506251]
[1771120785691,0.0004,69747.0,69745.0,0.0716894]
[1771120786359,0.0004,69747.0,69746.0,0.07168869]
[1771120787018,0.0004,69747.0,69746.0,0.09505598]
[1771120787216,0.0004,69747.0,69746.0,0.02336729]
[1771120788046,0.0004,69747.0,69746.0,0.09505598]
[1771120788249,0.00016,69750.0,69746.0,0.018]
[1771120788492,0.00016,69750.0,69747.0,0.09505443]
[1771120788694,0.00016,69750.0,69747.0,0.02336729]
[1771120788992,0.00016,69750.0,69748.0,0.07168664]
[1771120789203,0.00016,69750.0,69747.0,0.02336729]
[1771120789371,0.00016,69750.0,69748.0,0.07168632]
[1771120789577,0.00016,69750.0,69748.0,0.09505361]
[1771120790561,0.00016,69750.0,69748.0,0.10105361]
[1771120790764,0.00016,69750.0,69748.0,0.09505361]
[1771120791001,0.00016,69750.0,69749.0,0.07168561]
[1771120791431,0.00056,69750.0,69749.0,0.0950529]
[1771120793142,0.00056,69750.0,69749.0,0.1010529]
[1771120793547,0.00056,69750.0,69749.0,0.02336729]
[1771120793689,0.00056,69750.0,69745.0,0.07168933]
[1771120793690,0.00056,69750.0,69747.0,0.07168743]
[1771120794172,0.00056,69750.0,69749.0,0.07168561]
[1771120794690,0.00056,69750.0,69747.0,0.07168743]
[1771120795619,0.07224478,69750.0,69742.0,0.07169275]
[1771120795825,0.00056,69750.0,69745.0,0.07168888]
[1771120796073,0.00056,69750.0,69744.0,0.07168888]
[1771120796447,0.00056,69750.0,69744.0,0.0373556]
[1771120796654,0.00056,69750.0,69745.0,0.07168969]
[1771120796971,0.00056,69750.0,69746.0,0.07168862]
[1771120797129,0.00056,69750.0,69745.0,0.07168961]
[1771120797555,0.00056,69750.0,69746.0,0.07168866]
[1771120797964,0.00056,69750.0,69744.0,0.0373556]
[1771120797965,0.00056,69750.0,69745.0,0.07168953]
[1771120798860,0.00056,69750.0,69746.0,0.07168831]
[1771120799084,0.00056,69750.0,69747.0,0.07168726]
[1771120799325,0.00056,69750.0,69746.0,0.0716883]
[1771120799525,0.00056,69750.0,69746.0,0.07168845]
[1771120800066,0.00056,69750.0,69745.0,0.07168955]
[1771120800273,0.01792295,69748.0,69738.0,4e-05]
[1771120800448,0.01792295,69748.0,69740.0,0.07169471]
[1771120800449,0.01792295,69746.0,69740.0,0.07169471]
[1771120800647,0.01792295,69746.0,69739.0,0.07169392]
[1771120800908,0.01792295,69746.0,69741.0,0.07169377]
[1771120801208,0.01792295,69746.0,69738.0,4e-05]
[1771120801382,0.01792295,69746.0,69737.0,0.0002]
[1771120801383,0.07169068,69745.0,69737.0,0.0002]
[1771120802004,0.07169146,69744.0,69737.0,0.0002]
[1771120802176,0.07169068,69745.0,69737.0,0.0002]
[1771120802376,0.07169174,69744.0,69737.0,0.0002]
[1771120802574,0.07169104,69744.0,69737.0,0.07189785]
[1771120802822,0.07169068,69745.0,69737.0,0.0002]
[1771120803011,0.07168972,69745.0,69737.0,0.0002]
[1771120803218,0.01792295,69746.0,69739.0,0.07169501]
[1771120804007,0.08961224,69746.0,69737.0,0.07189597]
[1771120804208,0.00056,69750.0,69739.0,0.02336729]
[1771120804408,0.00056,69750.0,69749.0,0.07168561]
[1771120804635,4e-05,69754.0,69743.0,0.28676487]
[1771120804858,4e-05,69756.0,69751.0,0.09505066]
[1771120805049,0.00339421,69755.0,69751.0,0.09505066]
[1771120805255,4e-05,69756.0,69752.0,0.02336729]
[1771120805757,4e-05,69756.0,69752.0,0.09504897]
[1771120805960,4e-05,69758.0,69748.0,0.14368905]
[1771120806202,4e-05,69758.0,69754.0,0.02336729]
[1771120806385,4e-05,69758.0,69753.0,0.02336729]
[1771120806596,4e-05,69758.0,69753.0,0.09504844]
[1771120807286,4e-05,69758.0,69753.0,0.02336729]
[1771120808167,4e-05,69758.0,69754.0,0.02336729]
[1771120808365,4e-05,69758.0,69754.0,0.02328729]
[1771120809897,0.00044,69758.0,69754.0,0.02328729]
[1771120810090,0.28559368,69764.0,69754.0,0.02328729]
[1771120810292,0.2866865,69763.0,69754.0,0.02328729]
[1771120810498,0.07167708,69758.0,69754.0,0.02328729]
[1771120811092,0.0716751,69760.0,69754.0,0.02328729]
[1771120811239,0.07167323,69763.0,69754.0,0.02328729]
[1771120811442,0.00013027,69764.0,69754.0,0.02328729]
[1771120811640,0.07167205,69763.0,69755.0,0.07167937]
[1771120811867,0.07167268,69762.0,69755.0,0.02336729]
[1771120812089,0.15407492,69764.0,69755.0,0.02336729]
[1771120812291,0.07167215,69763.0,69755.0,0.02336729]
[1771120812467,0.07167215,69763.0,69755.0,0.09504654]
[1771120812777,0.22574707,69763.0,69755.0,0.09504654]
[1771120812975,0.15407492,69763.0,69753.0,0.0716815]
[1771120813172,0.15407492,69763.0,69755.0,0.02429758]
[1771120813575,0.15407492,69763.0,69759.0,0.02429758]
[1771120813798,0.15407492,69763.0,69760.0,0.02429758]
[1771120814330,0.15407492,69763.0,69759.0,0.07167505]
[1771120814557,0.15407492,69763.0,69759.0,0.09597263]
[1771120815301,0.0004,69765.0,69760.0,0.0716743]
[1771120815676,0.0002445,69768.0,69751.0,0.28672601]
[1771120815897,0.0002445,69768.0,69766.0,0.0610075]
[1771120816105,0.0002445,69768.0,69767.0,0.02429758]
[1771120816990,0.0002445,69768.0,69764.0,0.04237082]
[1771120817204,0.0002445,69768.0,69765.0,0.02429758]
[1771120817678,0.0002445,69768.0,69765.0,0.07166848]
[1771120817829,0.0002445,69768.0,69766.0,0.02429758]
[1771120819209,0.0719109,69768.0,69759.0,0.02429758]
[1771120819415,0.0719109,69768.0,69761.0,0.02429758]
[1771120819612,0.0719109,69768.0,69761.0,0.09597085]
[1771120819829,0.0719109,69768.0,69762.0,0.02429758]
[1771120820243,0.0719109,69768.0,69756.0,0.28675098]
[1771120820244,0.145781,69767.0,69756.0,4e-05]
[1771120820557,0.0002445,69768.0,69748.0,1e-08]
[1771120820558,0.07168561,69749.0,69748.0,1e-08]
[1771120820751,0.00013022,69749.0,69748.0,1e-08]
[1771120821174,0.07181583,69749.0,69748.0,1e-08]
[1771120821960,0.00013022,69749.0,69748.0,1e-08]
[1771120822956,0.07168664,69748.0,69742.0,4e-05]
[1771120823151,0.00013022,69749.0,69744.0,0.07172996]
[1771120823375,0.00013022,69749.0,69744.0,0.02433758]
[1771120823578,0.00013022,69749.0,69736.0,1e-08]
[1771120823579,0.02283627,69746.0,69736.0,1e-08]
[1771120823786,0.02283627,69742.0,69730.0,0.00012]
[1771120823960,0.07169486,69740.0,69730.0,0.07182464]
[1771120824166,0.07169659,69739.0,69730.0,0.07182464]
[1771120824423,0.07169659,69739.0,69731.0,0.07170404]
[1771120824612,0.07169659,69739.0,69730.0,0.07182488]
[1771120825116,0.28676545,69744.0,69730.0,0.07182488]
[1771120825117,4e-05,69756.0,69730.0,0.00012]
[1771120825325,0.00017022,69749.0,69741.0,0.071693]
[1771120825499,0.00017022,69749.0,69743.0,0.07169085]
[1771120826001,0.00017022,69749.0,69743.0,0.07169084]
[1771120826198,0.00017022,69749.0,69744.0,0.07169005]
[1771120826588,0.0002614,69750.0,69743.0,0.07169084]
[1771120826589,0.0002614,69750.0,69748.0,0.0002]
[1771120826791,0.07168183,69753.0,69746.0,4e-05]
[1771120826792,0.07168153,69753.0,69746.0,4e-05]
[1771120827651,0.07168255,69752.0,69746.0,4e-05]
[1771120827806,0.34226471,69756.0,69746.0,4e-05]
[1771120827807,0.07168534,69750.0,69746.0,4e-05]
[1771120828210,0.07168657,69749.0,69746.0,4e-05]
[1771120828522,0.09452026,69751.0,69746.0,4e-05]
[1771120828756,0.07168399,69751.0,69746.0,4e-05]
[1771120828930,0.07168248,69754.0,69746.0,4e-05]
[1771120829250,4e-05,69752.0,69744.0,0.06102619]
[1771120829674,4e-05,69752.0,69747.0,0.07168752]
[1771120829815,4e-05,69752.0,69747.0,0.07152089]
[1771120830029,4e-05,69752.0,69747.0,0.09581847]
[1771120830233,0.34230471,69756.0,69748.0,0.07168648]
[1771120830438,4e-05,69758.0,69753.0,0.07138145]
[1771120830936,4e-05,69758.0,69752.0,0.07168224]
[1771120831144,4e-05,69758.0,69754.0,0.07167994]
[1771120831801,4e-05,69758.0,69753.0,0.07168122]
[1771120832005,4e-05,69758.0,69753.0,0.07151456]
[1771120832206,4e-05,69760.0,69753.0,0.07151456]
[1771120832380,0.07142761,69760.0,69752.0,0.07168226]
[1771120832777,0.07167354,69761.0,69753.0,0.07168116]
[1771120832980,0.07167467,69760.0,69752.0,0.07168226]
[1771120833191,0.07167467,69760.0,69752.0,0.09597984]
[1771120833992,0.145781,69761.0,69740.0,0.0002493]
[1771120834192,0.0945216,69750.0,69740.0,0.07194343]
[1771120834423,0.0945216,69750.0,69740.0,0.0002493]
[1771120834424,0.02283627,69750.0,69740.0,0.0002493]
[1771120834617,0.07168867,69747.0,69741.0,0.34385022]
[1771120835046,0.07168901,69746.0,69741.0,0.34385022]
[1771120835255,0.07169666,69739.0,69734.0,0.0002]
[1771120835460,0.02283627,69742.0,69734.0,0.0002]
[1771120835783,0.34352,69746.0,69740.0,0.07169412]
[1771120835923,0.34352,69746.0,69739.0,0.0002]
[1771120835924,0.07169047,69745.0,69739.0,0.0002]
[1771120836114,0.09452895,69743.0,69739.0,0.0002]
[1771120836373,0.02283627,69742.0,69739.0,0.0002]
[1771120837634,0.07169112,69744.0,69739.0,0.0002]
[1771120837781,0.07169075,69744.0,69739.0,0.0002]
[1771120837985,0.09452702,69744.0,69739.0,0.0002]
[1771120838301,4e-05,69740.0,69739.0,0.00016]
[1771120838685,0.07169767,69738.0,69734.0,0.0002]
[1771120839020,0.09453445,69737.0,69734.0,0.0002]
[1771120839341,0.09453445,69737.0,69730.0,0.00012]
[1771120839342,0.07169795,69737.0,69730.0,0.00012]
[1771120839551,0.02283627,69738.0,69730.0,0.00025022]
[1771120839697,0.07169451,69741.0,69734.0,4e-05]
[1771120840094,0.29320976,69746.0,69734.0,0.07174081]
[1771120840298,0.36489845,69746.0,69738.0,0.07169653]
[1771120840544,4e-05,69746.0,69741.0,0.07169294]
[1771120840704,4e-05,69746.0,69741.0,0.07169308]
[1771120840904,4e-05,69746.0,69738.0,0.07169622]
[1771120840905,0.07187175,69746.0,69738.0,0.07169622]
[1771120841555,0.0001823,69746.0,69734.0,4e-05]
[1771120841761,0.07169412,69741.0,69734.0,4e-05]
[1771120843754,0.07169497,69740.0,69734.0,4e-05]
[1771120843953,0.07169486,69740.0,69734.0,4e-05]
[1771120844156,0.07169607,69739.0,69738.0,0.0002]
[1771120844361,0.0716986,69737.0,69730.0,0.00029022]
[1771120844563,0.09484496,69736.0,69731.0,0.0002]
[1771120844750,0.02314579,69735.0,69731.0,0.0002]
[1771120845152,0.07169917,69736.0,69731.0,0.0002]
[1771120846008,0.07170191,69734.0,69731.0,0.0002]
[1771120846158,0.02314579,69737.0,69731.0,0.0002]
[1771120846359,0.09484374,69737.0,69731.0,0.0002]
[1771120847259,0.02153999,69739.0,69731.0,0.0002]
[1771120847520,0.07169795,69737.0,69731.0,0.0002]
[1771120847961,0.02153999,69739.0,69731.0,0.0002]
[1771120848156,0.44351195,69742.0,69732.0,0.02472405]
[1771120848157,4e-05,69742.0,69732.0,0.02472405]
[1771120848405,0.0001423,69745.0,69740.0,0.09641805]
[1771120848406,1e-08,69745.0,69740.0,0.09641805]
[1771120848764,1e-08,69745.0,69735.0,0.02472405]
[1771120848978,0.07169063,69745.0,69737.0,0.07169763]
[1771120849590,1e-08,69745.0,69735.0,0.02472405]
[1771120849812,1e-08,69745.0,69741.0,0.07169323]
[1771120850619,1e-08,69745.0,69737.0,0.28679165]
[1771120850620,1e-08,69745.0,69740.0,0.07169468]
[1771120850819,0.0004,69749.0,69740.0,0.07169468]
[1771120851144,0.07168745,69748.0,69740.0,0.07169468]
[1771120851310,0.07168769,69747.0,69739.0,0.07169557]
[1771120851510,0.07168858,69747.0,69738.0,0.07169689]
[1771120851728,0.07168745,69748.0,69740.0,0.07169481]
[1771120852352,0.07168767,69747.0,69739.0,0.07169551]
[1771120852751,0.07168887,69746.0,69737.0,0.02472405]
[1771120853162,4e-05,69738.0,69736.0,4e-05]
[1771120853778,4e-05,69738.0,69736.0,0.07173888]
[1771120854139,4e-05,69738.0,69737.0,0.0002]
[1771120855247,4e-05,69742.0,69737.0,0.0002]
[1771120855454,4e-05,69748.0,69743.0,0.09641495]
[1771120855659,4e-05,69748.0,69744.0,0.07169066]
[1771120856261,4e-05,69748.0,69745.0,0.07168968]
[1771120856523,4e-05,69752.0,69744.0,0.28676111]
[1771120856710,4e-05,69752.0,69748.0,0.09640982]
[1771120857039,4e-05,69752.0,69748.0,0.02455742]
[1771120857224,4e-05,69752.0,69746.0,0.07168851]
[1771120857602,4e-05,69752.0,69746.0,0.05176967]
[1771120858652,4e-05,69752.0,69745.0,0.07168972]
[1771120858827,4e-05,69752.0,69744.0,0.02472405]
[1771120858828,4e-05,69752.0,69747.0,0.07168693]
[1771120860877,4e-05,69752.0,69747.0,0.06080033]
[1771120861427,4e-05,69752.0,69744.0,0.02472405]
[1771120861808,4e-05,69752.0,69745.0,0.07168883]
[1771120862702,4e-05,69752.0,69747.0,0.07168688]
[1771120863126,4e-05,69752.0,69746.0,0.07168859]
[1771120863330,4e-05,69752.0,69747.0,0.07168751]
[1771120863522,0.00044,69752.0,69748.0,0.07168656]
[1771120863727,0.00044,69752.0,69747.0,0.07168751]
[1771120865922,0.00044,69752.0,69748.0,0.07168661]
[1771120866328,0.35326672,69757.0,69748.0,0.07168661]
[1771120866737,0.07167952,69755.0,69747.0,0.07168731]
[1771120867071,0.01907647,69759.0,69746.0,4e-05]
[1771120867312,0.01336522,69758.0,69757.0,0.07167739]
[1771120867514,0.0004,69759.0,69756.0,0.07167763]
[1771120868300,4e-05,69758.0,69756.0,0.07167763]
[1771120868505,8.341e-05,69758.0,69756.0,0.07167763]
[1771120869146,0.00044,69760.0,69756.0,0.07167763]
[1771120869147,4e-05,69760.0,69756.0,0.07167763]
[1771120869353,4e-05,69764.0,69760.0,0.05523027]
[1771120869510,4e-05,69764.0,69759.0,0.09639913]
[1771120869974,4e-05,69764.0,69759.0,0.09627245]
[1771120870577,0.0716815,69753.0,69752.0,4e-05]
[1771120870733,0.07167994,69755.0,69747.0,0.07168683]
[1771120870953,0.07168527,69750.0,69740.0,0.02484405]
[1771120871184,0.36227647,69756.0,69740.0,0.00012]
[1771120871185,0.07168859,69747.0,69740.0,0.00012]
[1771120871343,0.07168684,69748.0,69740.0,0.07181476]
[1771120871545,0.07168525,69750.0,69740.0,0.07181476]
[1771120871745,0.01867647,69752.0,69743.0,0.07169178]
[1771120871982,0.09035971,69752.0,69744.0,0.07173012]
[1771120872977,0.09075971,69752.0,69744.0,0.07173012]
[1771120873418,0.07208324,69752.0,69744.0,0.07173012]
[1771120875302,0.07208324,69752.0,69740.0,0.00012]
[1771120875498,0.07208324,69752.0,69744.0,0.07169012]
[1771120875901,0.07208324,69752.0,69744.0,0.07152348]
[1771120879918,0.07168364,69751.0,69743.0,0.07169106]
[1771120880860,0.07168535,69750.0,69742.0,4e-05]
[1771120881070,0.15642233,69752.0,69742.0,4e-05]
[1771120881266,0.07169264,69743.0,69738.0,0.09184]
[1771120881467,0.07169429,69741.0,69732.0,0.0002]
[1771120881669,0.00011821,69741.0,69734.0,0.07170099]
[1771120882227,0.00011821,69741.0,69735.0,0.07169976]
[1771120883254,4e-05,69736.0,69735.0,0.07165976]
[1771120884158,4e-05,69736.0,69734.0,0.07170066]
[1771120884801,4e-05,69736.0,69732.0,0.07190276]
[1771120885356,4e-05,69736.0,69733.0,0.07170202]
[1771120885799,4e-05,69736.0,69732.0,0.07190276]
[1771120886955,0.20904618,69735.0,69732.0,0.0002]
[1771120887116,4e-05,69736.0,69732.0,0.0002]
[1771120887323,0.01871647,69736.0,69732.0,0.0002]
[1771120887602,0.01871647,69736.0,69732.0,0.0719026]
[1771120887795,4e-05,69736.0,69732.0,0.0719026]
[1771120887998,4e-05,69736.0,69732.0,0.0002]
[1771120889284,0.07173927,69736.0,69732.0,0.0002]
[1771120889432,4e-05,69736.0,69732.0,0.0002]
[1771120889627,0.07173918,69736.0,69732.0,0.0002]
[1771120889863,0.07170113,69734.0,69732.0,0.0002]
[1771120890084,0.07170036,69735.0,69732.0,0.0002]
[1771120890239,4e-05,69736.0,69732.0,0.0002]
[1771120892373,0.33568466,69737.0,69732.0,0.07190267]
[1771120892868,0.33568466,69737.0,69732.0,0.0002]
[1771120893285,0.33568466,69737.0,69731.0,0.06139098]
[1771120894277,0.33568466,69737.0,69730.0,0.07202487]
[1771120894681,0.33568466,69737.0,69732.0,0.0002]
[1771120895053,0.07169931,69736.0,69732.0,0.0002]
[1771120895460,0.33568466,69737.0,69732.0,0.0002]
[1771120895683,0.33568466,69737.0,69730.0,0.00032]
[1771120895886,0.01867647,69735.0,69726.0,4e-05]
[1771120896379,0.07170804,69728.0,69720.0,0.07183518]
[1771120897124,0.65994157,69730.0,69718.0,0.0003918]
[1771120897125,0.4323334,69730.0,69718.0,0.0003918]
[1771120897299,0.63043448,69727.0,69718.0,0.0003918]
[1771120897467,0.07171089,69725.0,69718.0,0.0003918]
[1771120897668,0.07170926,69726.0,69718.0,0.0003918]
[1771120898069,0.07171225,69725.0,69718.0,0.0003918]
[1771120898293,0.07171245,69723.0,69712.0,0.28689266]
[1771120899021,0.07171149,69724.0,69716.0,0.07171942]
[1771120900035,0.3436,69724.0,69719.0,0.07171628]
[1771120900205,0.3436,69724.0,69721.0,0.07171424]
[1771120900412,0.3436,69724.0,69721.0,0.07181504]
[1771120900611,0.3436,69724.0,69721.0,0.0001008]
[1771120900835,0.3436,69726.0,69721.0,0.0001008]
[1771120904864,0.07171029,69725.0,69721.0,0.0001008]
[1771120905286,0.3436,69726.0,69721.0,0.0001008]
[1771120906206,0.41530926,69726.0,69721.0,0.0001008]
[1771120907204,0.41534926,69726.0,69721.0,0.0001008]
[1771120907931,0.34364,69726.0,69721.0,0.0001008]
[1771120908272,0.4153493,69726.0,69721.0,0.0001008]
[1771120908428,0.34364,69726.0,69721.0,0.0001008]
[1771120908752,0.41535029,69726.0,69721.0,0.0001008]
[1771120908952,0.0717103,69725.0,69721.0,0.0001008]
[1771120909151,0.34364,69726.0,69721.0,0.0001008]
[1771120910323,0.41534965,69726.0,69721.0,0.0001008]
[1771120910521,0.41534965,69726.0,69721.0,0.09454613]
[1771120910522,0.26345703,69726.0,69721.0,0.09454613]
[1771120910857,0.07171029,69725.0,69721.0,0.0001008]
[1771120911001,0.07171268,69723.0,69721.0,0.0001008]
[1771120911617,0.07171268,69723.0,69720.0,0.00013413]
[1771120911836,0.07171268,69723.0,69719.0,0.0001928]
[1771120913082,0.34364,69727.0,69719.0,0.0001928]
[1771120913290,4e-05,69720.0,69719.0,0.02292442]
[1771120913492,4e-05,69722.0,69719.0,0.0001928]
[1771120913733,4e-05,69722.0,69719.0,0.02292442]
[1771120914499,4e-05,69722.0,69719.0,0.02305464]
[1771120915176,4e-05,69722.0,69719.0,0.00032302]
[1771120915831,0.4322134,69731.0,69719.0,0.07203908]
[1771120916128,0.07171123,69725.0,69719.0,0.02305464]
[1771120916366,0.07171273,69723.0,69719.0,0.00032302]
[1771120916543,0.07171161,69724.0,69719.0,0.00032302]
[1771120916742,0.07171005,69726.0,69719.0,0.00032302]
[1771120916939,0.07171189,69724.0,69719.0,0.00032302]
[1771120918350,4e-05,69728.0,69720.0,0.02273162]
[1771120919209,0.07174409,69732.0,69722.0,0.02273162]
[1771120919409,0.0717048,69731.0,69724.0,0.07171112]
[1771120919613,0.07170518,69730.0,69725.0,0.02273162]
[1771120920407,0.07170687,69729.0,69725.0,0.02273162]
[1771120920752,4e-05,69732.0,69721.0,0.14562191]
[1771120920911,4e-05,69732.0,69729.0,0.02273162]
[1771120921320,4e-05,69732.0,69731.0,0.07170412]
[1771120921869,4e-05,69732.0,69731.0,0.09443574]
[1771120922363,4e-05,69736.0,69733.0,0.02273162]
[1771120922515,0.0004,69737.0,69736.0,0.02273162]
[1771120922708,0.0004,69737.0,69730.0,0.07170452]
[1771120922949,0.0004,69737.0,69734.0,0.07170097]
[1771120924881,0.0004,69737.0,69735.0,0.07169984]
[1771120925231,0.0004,69744.0,69738.0,0.02273162]
[1771120925430,0.01337285,69743.0,69740.0,0.02273162]
[1771120925674,0.0004,69744.0,69740.0,0.02273162]
[1771120926074,0.07169194,69743.0,69736.0,0.07169871]
[1771120926444,0.0004,69744.0,69737.0,0.071697]
[1771120926653,7.466e-05,69743.0,69736.0,0.07169868]
[1771120927485,7.466e-05,69743.0,69736.0,0.07169897]
[1771120927680,7.466e-05,69743.0,69741.0,0.07169314]
[1771120927980,7.466e-05,69743.0,69741.0,0.02273162]
[1771120928127,4e-05,69742.0,69741.0,0.02265162]
[1771120929793,4e-05,69742.0,69740.0,0.07169462]
[1771120929794,0.071696,69739.0,69730.0,0.00016]
[1771120929969,0.07169471,69741.0,69733.0,0.07170176]
[1771120930172,0.07173471,69742.0,69733.0,0.07170176]
[1771120930495,4e-05,69742.0,69730.0,0.00016]
[1771120930670,0.07169981,69736.0,69730.0,0.00016]
[1771120930873,0.07169949,69736.0,69730.0,0.00016]
[1771120931193,0.43227342,69740.0,69730.0,0.00016]
[1771120931345,0.0717032,69732.0,69730.0,0.00016]
[1771120931544,0.0717032,69732.0,69728.0,3.337e-05]
[1771120932389,0.0717045,69731.0,69728.0,3.337e-05]
[1771120932593,0.071703,69733.0,69731.0,0.0005]
[1771120932924,0.07170309,69732.0,69731.0,0.0005]
[1771120933121,0.07170309,69732.0,69728.0,3.337e-05]